[Event "Early-Titled-Tuesday-Blitz-May-28-2024"]
[Site "Chess.com"]
[Date "2024.05.28"]
[Round "5"]
[White "secrethawk1"]
[Black "manmanlai1"]
[Result "0-1"]
[WhiteElo "2420"]
[BlackElo "2569"]
[TimeControl "180+1"]
[EndTime "8:56:04 PDT"]
[Termination "manmanlai1 won by checkmate"]

1. d4 {[%clk 0:03:00.9]} 1... Nf6 {[%clk 0:01:27.2]} 2. c4 {[%clk 0:02:58.8]}
2... g6 {[%clk 0:01:27.8]} 3. Nc3 {[%clk 0:02:56.5]} 3... Bg7 {[%clk 0:01:28.4]}
4. e4 {[%clk 0:02:55.5]} 4... d6 {[%clk 0:01:29.1]} 5. f3 {[%clk 0:02:50]} 5...
O-O {[%clk 0:01:27.4]} 6. Be3 {[%clk 0:02:49.4]} 6... c5 {[%clk 0:01:28]} 7. d5
{[%clk 0:02:40]} 7... e6 {[%clk 0:01:27.1]} 8. Bd3 {[%clk 0:02:38.2]} 8... exd5
{[%clk 0:01:27.5]} 9. cxd5 {[%clk 0:02:36.5]} 9... Nh5 {[%clk 0:01:27.7]} 10.
Nge2 {[%clk 0:02:36.1]} 10... f5 {[%clk 0:01:26.8]} 11. O-O {[%clk 0:02:35.6]}
11... f4 {[%clk 0:01:27.1]} 12. Bf2 {[%clk 0:02:33]} 12... Nd7 {[%clk
0:01:27.5]} 13. a3 {[%clk 0:02:24.5]} 13... Ne5 {[%clk 0:01:28.1]} 14. b4 {[%clk
0:02:21.3]} 14... b6 {[%clk 0:01:27.7]} 15. Rc1 {[%clk 0:02:16.6]} 15... Kh8
{[%clk 0:01:27.7]} 16. Qd2 {[%clk 0:02:06]} 16... g5 {[%clk 0:01:27.9]} 17. Bb1
{[%clk 0:02:03.5]} 17... g4 {[%clk 0:01:25.5]} 18. bxc5 {[%clk 0:02:02.7]} 18...
bxc5 {[%clk 0:01:25]} 19. fxg4 {[%clk 0:01:47]} 19... Bxg4 {[%clk 0:01:24.5]}
20. Nb5 {[%clk 0:01:29.1]} 20... f3 {[%clk 0:01:22.4]} 21. Ng3 {[%clk
0:01:28.3]} 21... Nf4 {[%clk 0:01:18.9]} 22. Be3 {[%clk 0:01:05.8]} 22... Nxg2
{[%clk 0:01:17]} 23. Rf2 {[%clk 0:01:04.8]} 23... Nxe3 {[%clk 0:01:11.3]} 24.
Qxe3 {[%clk 0:01:05.7]} 24... Rb8 {[%clk 0:01:07.8]} 25. Nc3 {[%clk 0:00:55.5]}
25... Qh4 {[%clk 0:00:55.5]} 26. Rcf1 {[%clk 0:00:45.5]} 26... Bh3 {[%clk
0:00:50.7]} 27. Rd1 {[%clk 0:00:31]} 27... Ng4 {[%clk 0:00:46.1]} 28. Qe1 {[%clk
0:00:26.1]} 28... Nxf2 {[%clk 0:00:45.8]} 29. Qxf2 {[%clk 0:00:23.4]} 29... Bxc3
{[%clk 0:00:46]} 30. Bd3 {[%clk 0:00:14.4]} 30... Bd4 {[%clk 0:00:45.3]} 31.
Qxd4+ {[%clk 0:00:08.1]} 31... cxd4 {[%clk 0:00:46.2]} 32. Kf2 {[%clk
0:00:08.1]} 32... Bg4 {[%clk 0:00:36.6]} 33. Be2 {[%clk 0:00:09]} 33... Qxh2+
{[%clk 0:00:35.8]} 34. Ke1 {[%clk 0:00:08.1]} 34... f2+ {[%clk 0:00:35.8]} 35.
Kd2 {[%clk 0:00:07.4]} 35... Qxg3 {[%clk 0:00:34.9]} 36. Rh1 {[%clk 0:00:05.5]}
36... Qc3+ {[%clk 0:00:34.4]} 37. Kd1 {[%clk 0:00:02.5]} 37... Rb1# {[%clk
0:00:35.3]} 0-1

[Event "Early-Titled-Tuesday-Blitz-May-28-2024"]
[Site "Chess.com"]
[Date "2024.05.28"]
[Round "5"]
[White "Nitzan_Steinberg"]
[Black "Pomegranate988"]
[Result "1-0"]
[WhiteElo "2901"]
[BlackElo "2659"]
[TimeControl "180+1"]
[EndTime "8:56:08 PDT"]
[Termination "Nitzan_Steinberg won on time"]

1. e4 {[%clk 0:03:00.9]} 1... c6 {[%clk 0:02:59.3]} 2. Nf3 {[%clk 0:02:56.6]}
2... g6 {[%clk 0:03:00.2]} 3. d4 {[%clk 0:02:55.8]} 3... d5 {[%clk 0:02:59.6]}
4. Nc3 {[%clk 0:02:56.4]} 4... Bg7 {[%clk 0:02:58.8]} 5. Bf4 {[%clk 0:02:54.4]}
5... dxe4 {[%clk 0:02:50.3]} 6. Nxe4 {[%clk 0:02:54.4]} 6... Qa5+ {[%clk
0:02:50.8]} 7. Bd2 {[%clk 0:02:42.9]} 7... Qc7 {[%clk 0:02:49.7]} 8. Bc4 {[%clk
0:02:37.3]} 8... Nf6 {[%clk 0:02:25.4]} 9. Neg5 {[%clk 0:02:34.3]} 9... O-O
{[%clk 0:02:19.7]} 10. O-O {[%clk 0:02:26.3]} 10... Nd5 {[%clk 0:02:08.2]} 11.
Re1 {[%clk 0:02:21.7]} 11... h6 {[%clk 0:02:00.5]} 12. Ne4 {[%clk 0:02:21.5]}
12... Nd7 {[%clk 0:02:00.6]} 13. h3 {[%clk 0:02:11.8]} 13... e6 {[%clk
0:01:52.4]} 14. Bb3 {[%clk 0:02:10.2]} 14... b5 {[%clk 0:01:48.7]} 15. a4 {[%clk
0:02:08.1]} 15... Bb7 {[%clk 0:01:47.6]} 16. c3 {[%clk 0:02:01.5]} 16... a6
{[%clk 0:01:44.1]} 17. Qc1 {[%clk 0:01:59.6]} 17... Kh7 {[%clk 0:01:42.4]} 18.
h4 {[%clk 0:01:57.6]} 18... c5 {[%clk 0:01:39.4]} 19. h5 {[%clk 0:01:28.8]}
19... g5 {[%clk 0:01:34.6]} 20. axb5 {[%clk 0:01:19.5]} 20... axb5 {[%clk
0:01:29.2]} 21. Rxa8 {[%clk 0:01:20.4]} 21... Bxa8 {[%clk 0:01:29.4]} 22. Bc2
{[%clk 0:01:11.6]} 22... Kg8 {[%clk 0:01:22.2]} 23. Nexg5 {[%clk 0:00:51.8]}
23... hxg5 {[%clk 0:01:21.4]} 24. Bxg5 {[%clk 0:00:50.2]} 24... Kh8 {[%clk
0:00:53.2]} 25. Bb1 {[%clk 0:00:40.7]} 25... Qd6 {[%clk 0:00:30.4]} 26. h6
{[%clk 0:00:39.9]} 26... Rg8 {[%clk 0:00:16.3]} 27. hxg7+ {[%clk 0:00:39.8]}
27... Rxg7 {[%clk 0:00:17.1]} 28. Re4 {[%clk 0:00:34.3]} 28... Kg8 {[%clk
0:00:15.8]} 29. Rh4 {[%clk 0:00:33.5]} 29... N5f6 {[%clk 0:00:13.4]} 30. Bxf6
{[%clk 0:00:28.3]} 30... Nxf6 {[%clk 0:00:11.9]} 31. Qh6 {[%clk 0:00:28.3]}
31... Nh7 {[%clk 0:00:04.6]} 32. Bxh7+ {[%clk 0:00:27.3]} 32... Kf8 {[%clk
0:00:05.3]} 33. Rg4 {[%clk 0:00:26.8]} 1-0

[Event "Early-Titled-Tuesday-Blitz-May-28-2024"]
[Site "Chess.com"]
[Date "2024.05.28"]
[Round "5"]
[White "agvega14"]
[Black "David_George21"]
[Result "1-0"]
[WhiteElo "2255"]
[BlackElo "2395"]
[TimeControl "180+1"]
[EndTime "8:56:09 PDT"]
[Termination "agvega14 won on time"]

1. e4 {[%clk 0:03:00.9]} 1... c5 {[%clk 0:02:39]} 2. Nf3 {[%clk 0:02:59.2]} 2...
d6 {[%clk 0:02:37.3]} 3. c3 {[%clk 0:02:55.1]} 3... Nf6 {[%clk 0:02:19.2]} 4. h3
{[%clk 0:02:50.3]} 4... Nc6 {[%clk 0:02:17.6]} 5. d3 {[%clk 0:02:46.8]} 5... g6
{[%clk 0:02:13.6]} 6. Be2 {[%clk 0:02:46.7]} 6... Bg7 {[%clk 0:02:12.6]} 7. Bg5
{[%clk 0:02:46.7]} 7... O-O {[%clk 0:02:13.5]} 8. O-O {[%clk 0:02:46.1]} 8... h6
{[%clk 0:02:12.6]} 9. Be3 {[%clk 0:02:45.3]} 9... b6 {[%clk 0:02:09.3]} 10. a4
{[%clk 0:02:44.5]} 10... Bb7 {[%clk 0:02:06.6]} 11. Nbd2 {[%clk 0:02:40.6]}
11... Ne8 {[%clk 0:01:49.1]} 12. Qc2 {[%clk 0:02:08.1]} 12... d5 {[%clk
0:01:44.4]} 13. Bf4 {[%clk 0:01:51.9]} 13... d4 {[%clk 0:01:38.6]} 14. Rfe1
{[%clk 0:01:45.7]} 14... Rc8 {[%clk 0:01:37.1]} 15. Bf1 {[%clk 0:01:36.3]} 15...
Nc7 {[%clk 0:01:29.3]} 16. Nc4 {[%clk 0:01:34.6]} 16... Ne6 {[%clk 0:01:24]} 17.
Bh2 {[%clk 0:01:23.9]} 17... a6 {[%clk 0:01:11.5]} 18. Qb3 {[%clk 0:01:17.2]}
18... b5 {[%clk 0:00:22]} 19. axb5 {[%clk 0:01:16]} 19... axb5 {[%clk
0:00:22.9]} 20. Qxb5 {[%clk 0:01:13.6]} 20... Ba8 {[%clk 0:00:22.6]} 21. Rxa8
{[%clk 0:01:02.5]} 21... Rxa8 {[%clk 0:00:20.4]} 22. Qxc6 {[%clk 0:01:02.6]}
22... dxc3 {[%clk 0:00:20.5]} 23. bxc3 {[%clk 0:01:02.3]} 23... Bxc3 {[%clk
0:00:20.9]} 24. Rd1 {[%clk 0:01:02.2]} 24... Nd4 {[%clk 0:00:19.8]} 25. Nxd4
{[%clk 0:01:01.8]} 25... Bxd4 {[%clk 0:00:20.7]} 26. Bg3 {[%clk 0:00:54.6]}
26... Ra2 {[%clk 0:00:20.2]} 27. Ne3 {[%clk 0:00:48.6]} 27... Qd7 {[%clk
0:00:15.8]} 28. Qxd7 {[%clk 0:00:47]} 28... e6 {[%clk 0:00:14.5]} 29. Rb1 {[%clk
0:00:44.6]} 29... Rfa8 {[%clk 0:00:08.9]} 30. Rb8+ {[%clk 0:00:43.7]} 30... Rxb8
{[%clk 0:00:08.7]} 31. Bxb8 {[%clk 0:00:43.3]} 31... Rb2 {[%clk 0:00:06.1]} 32.
Qd8+ {[%clk 0:00:41.5]} 32... Kg7 {[%clk 0:00:05.8]} 33. Bd6 {[%clk 0:00:40.8]}
33... c4 {[%clk 0:00:04.4]} 34. dxc4 {[%clk 0:00:39]} 34... Bc3 {[%clk
0:00:03.6]} 35. Bf8+ {[%clk 0:00:37.9]} 35... Kh7 {[%clk 0:00:02.9]} 36. Be7
{[%clk 0:00:36.5]} 36... Rc2 {[%clk 0:00:01.6]} 37. Qf8 {[%clk 0:00:34.6]} 37...
Bg7 {[%clk 0:00:01]} 38. Qxf7 {[%clk 0:00:34.5]} 38... Rd2 {[%clk 0:00:01]} 39.
Bf6 {[%clk 0:00:34.5]} 1-0

[Event "Early-Titled-Tuesday-Blitz-May-28-2024"]
[Site "Chess.com"]
[Date "2024.05.28"]
[Round "5"]
[White "the_chess_child"]
[Black "Chesstrainer1"]
[Result "1-0"]
[WhiteElo "2889"]
[BlackElo "2508"]
[TimeControl "180+1"]
[EndTime "8:56:16 PDT"]
[Termination "the_chess_child won by resignation"]

1. e4 {[%clk 0:02:43.3]} 1... c5 {[%clk 0:02:59.2]} 2. Nf3 {[%clk 0:02:42.9]}
2... a6 {[%clk 0:02:59.8]} 3. d3 {[%clk 0:02:43.1]} 3... b5 {[%clk 0:02:56.5]}
4. g3 {[%clk 0:02:43]} 4... Bb7 {[%clk 0:02:56.4]} 5. Bg2 {[%clk 0:02:43.3]}
5... e6 {[%clk 0:02:53.5]} 6. O-O {[%clk 0:02:43.4]} 6... d6 {[%clk 0:02:50.9]}
7. Re1 {[%clk 0:02:41.6]} 7... Nf6 {[%clk 0:02:50]} 8. Nbd2 {[%clk 0:02:41.3]}
8... Be7 {[%clk 0:02:49.9]} 9. c3 {[%clk 0:02:41.3]} 9... O-O {[%clk 0:02:49.8]}
10. d4 {[%clk 0:02:40.6]} 10... Nbd7 {[%clk 0:02:49.3]} 11. e5 {[%clk
0:02:39.5]} 11... Ng4 {[%clk 0:02:29.7]} 12. h3 {[%clk 0:02:34.8]} 12... Nh6
{[%clk 0:02:29.6]} 13. Ne4 {[%clk 0:02:01.5]} 13... cxd4 {[%clk 0:02:28.4]} 14.
exd6 {[%clk 0:01:56.8]} 14... Bf6 {[%clk 0:02:18.6]} 15. Nxd4 {[%clk 0:01:50.5]}
15... Bxd4 {[%clk 0:01:51]} 16. Bxh6 {[%clk 0:01:36.7]} 16... Bxf2+ {[%clk
0:01:44.2]} 17. Nxf2 {[%clk 0:01:33.2]} 17... Bxg2 {[%clk 0:01:41]} 18. Bxg7
{[%clk 0:01:21.8]} 18... Kxg7 {[%clk 0:01:35.5]} 19. Kxg2 {[%clk 0:01:21.5]}
19... Rc8 {[%clk 0:01:22.4]} 20. Ne4 {[%clk 0:01:12.5]} 20... f5 {[%clk
0:01:17.3]} 21. Nf2 {[%clk 0:01:10]} 21... Qf6 {[%clk 0:01:16.8]} 22. Qf3 {[%clk
0:01:07.4]} 22... Rf7 {[%clk 0:00:52.6]} 23. Rad1 {[%clk 0:01:02.2]} 23... Ne5
{[%clk 0:00:42.1]} 24. Qe2 {[%clk 0:00:54.7]} 24... Nc4 {[%clk 0:00:33.4]} 25.
Nd3 {[%clk 0:00:43.5]} 25... Rd8 {[%clk 0:00:21.9]} 26. Nf4 {[%clk 0:00:40.6]}
26... Kh8 {[%clk 0:00:14]} 27. Qxe6 {[%clk 0:00:24.8]} 27... Rxd6 {[%clk
0:00:11]} 28. Rxd6 {[%clk 0:00:16.5]} 28... Nxd6 {[%clk 0:00:10.4]} 29. Qd5
{[%clk 0:00:16.6]} 29... Re7 {[%clk 0:00:08.9]} 30. Qa8+ {[%clk 0:00:15.1]}
30... Ne8 {[%clk 0:00:06.7]} 31. Qxe8+ {[%clk 0:00:14.2]} 31... Rxe8 {[%clk
0:00:06.1]} 32. Rxe8+ {[%clk 0:00:15.1]} 1-0

[Event "Early-Titled-Tuesday-Blitz-May-28-2024"]
[Site "Chess.com"]
[Date "2024.05.28"]
[Round "5"]
[White "Susal_De_Silva"]
[Black "FollowRivers"]
[Result "0-1"]
[WhiteElo "2601"]
[BlackElo "2483"]
[TimeControl "180+1"]
[EndTime "8:56:16 PDT"]
[Termination "FollowRivers won on time"]

1. e4 {[%clk 0:03:00.1]} 1... c5 {[%clk 0:02:15]} 2. Nf3 {[%clk 0:02:57.7]} 2...
g6 {[%clk 0:02:14.9]} 3. d4 {[%clk 0:02:53.4]} 3... cxd4 {[%clk 0:02:15.8]} 4.
Nxd4 {[%clk 0:02:54.2]} 4... Bg7 {[%clk 0:02:15.8]} 5. Nc3 {[%clk 0:02:54.1]}
5... Nc6 {[%clk 0:02:15.6]} 6. Be3 {[%clk 0:02:53.9]} 6... Nf6 {[%clk
0:02:15.3]} 7. Be2 {[%clk 0:02:53.6]} 7... O-O {[%clk 0:02:13.7]} 8. O-O {[%clk
0:02:52.5]} 8... d5 {[%clk 0:02:13.6]} 9. exd5 {[%clk 0:02:51.5]} 9... Nxd5
{[%clk 0:02:14.5]} 10. Nxc6 {[%clk 0:02:50.8]} 10... bxc6 {[%clk 0:02:13.8]} 11.
Nxd5 {[%clk 0:02:40]} 11... cxd5 {[%clk 0:02:12]} 12. c3 {[%clk 0:02:39.6]}
12... Rb8 {[%clk 0:02:10.1]} 13. Qd2 {[%clk 0:02:39]} 13... a6 {[%clk
0:02:05.5]} 14. Rfd1 {[%clk 0:02:35.6]} 14... e6 {[%clk 0:01:59.3]} 15. Rab1
{[%clk 0:02:31.4]} 15... Qc7 {[%clk 0:01:56.5]} 16. Bf4 {[%clk 0:02:29.7]} 16...
e5 {[%clk 0:01:56.8]} 17. Bg3 {[%clk 0:02:25]} 17... Be6 {[%clk 0:01:51.7]} 18.
Bxa6 {[%clk 0:02:20.2]} 18... Qa5 {[%clk 0:01:48]} 19. Bf1 {[%clk 0:02:06.8]}
19... Qxa2 {[%clk 0:01:46.2]} 20. f4 {[%clk 0:02:00.4]} 20... exf4 {[%clk
0:01:32.6]} 21. Bxf4 {[%clk 0:02:01.3]} 21... Rb3 {[%clk 0:01:30.9]} 22. Bd6
{[%clk 0:01:48.9]} 22... Rd8 {[%clk 0:01:08.2]} 23. Be7 {[%clk 0:01:36.1]} 23...
Re8 {[%clk 0:01:04.8]} 24. Bb4 {[%clk 0:01:35.4]} 24... Bf5 {[%clk 0:00:54.5]}
25. Re1 {[%clk 0:01:34.3]} 25... Rd8 {[%clk 0:00:44.6]} 26. Bc4 {[%clk
0:00:14.3]} 26... Bxb1 {[%clk 0:00:41.5]} 27. Bxd5 {[%clk 0:00:14.3]} 27... Qa7+
{[%clk 0:00:20.5]} 28. Kh1 {[%clk 0:00:08]} 28... Qd7 {[%clk 0:00:20.6]} 29.
Bxf7+ {[%clk 0:00:03.8]} 29... Kxf7 {[%clk 0:00:19.8]} 30. Qf4+ {[%clk
0:00:02.4]} 30... Bf5 {[%clk 0:00:18.7]} 31. Qc4+ {[%clk 0:00:01]} 31... Qd5
{[%clk 0:00:18.8]} 0-1

[Event "Early-Titled-Tuesday-Blitz-May-28-2024"]
[Site "Chess.com"]
[Date "2024.05.28"]
[Round "5"]
[White "MikeSailer"]
[Black "BashirliSaadat"]
[Result "0-1"]
[WhiteElo "2066"]
[BlackElo "2369"]
[TimeControl "180+1"]
[EndTime "8:56:17 PDT"]
[Termination "BashirliSaadat won on time"]

1. d4 {[%clk 0:02:59.2]} 1... d5 {[%clk 0:02:59.8]} 2. Nf3 {[%clk 0:02:59]} 2...
e6 {[%clk 0:02:59.1]} 3. Bf4 {[%clk 0:02:58.9]} 3... c5 {[%clk 0:02:59.1]} 4. e3
{[%clk 0:02:59.1]} 4... Nc6 {[%clk 0:02:58.9]} 5. c3 {[%clk 0:02:59.4]} 5... Nf6
{[%clk 0:02:59.1]} 6. Bd3 {[%clk 0:02:59.2]} 6... Qb6 {[%clk 0:02:59.4]} 7. b3
{[%clk 0:02:23]} 7... Bd7 {[%clk 0:02:55.2]} 8. O-O {[%clk 0:02:21.1]} 8... Be7
{[%clk 0:02:53.1]} 9. Nbd2 {[%clk 0:02:19.5]} 9... O-O {[%clk 0:02:51.9]} 10.
Ne5 {[%clk 0:02:18.3]} 10... Rac8 {[%clk 0:02:42.1]} 11. Qf3 {[%clk 0:01:50.7]}
11... cxd4 {[%clk 0:02:31.5]} 12. cxd4 {[%clk 0:01:44.9]} 12... Nb4 {[%clk
0:02:29.7]} 13. Bb1 {[%clk 0:01:38.7]} 13... Bb5 {[%clk 0:02:29.3]} 14. Rd1
{[%clk 0:01:30.8]} 14... Nc2 {[%clk 0:02:23.7]} 15. Bxc2 {[%clk 0:01:19.3]}
15... Rxc2 {[%clk 0:02:24.6]} 16. a4 {[%clk 0:01:19.2]} 16... Bc6 {[%clk
0:02:20.4]} 17. Rac1 {[%clk 0:01:11.2]} 17... Rxc1 {[%clk 0:02:12.7]} 18. Rxc1
{[%clk 0:01:10.9]} 18... Bb4 {[%clk 0:02:12.9]} 19. Nf1 {[%clk 0:01:07.3]} 19...
Ne4 {[%clk 0:02:06.4]} 20. Ng3 {[%clk 0:00:58.6]} 20... Ba3 {[%clk 0:01:47.9]}
21. Rd1 {[%clk 0:00:33.5]} 21... Qxb3 {[%clk 0:01:43.6]} 22. Nxc6 {[%clk
0:00:32.1]} 22... bxc6 {[%clk 0:01:42.4]} 23. Nxe4 {[%clk 0:00:24.8]} 23... dxe4
{[%clk 0:01:41.5]} 24. Qe2 {[%clk 0:00:24.5]} 24... Rb8 {[%clk 0:01:40.5]} 25.
h4 {[%clk 0:00:22.4]} 25... Rb4 {[%clk 0:01:35]} 26. h5 {[%clk 0:00:19.9]} 26...
Qd5 {[%clk 0:01:18.1]} 27. h6 {[%clk 0:00:18.6]} 27... g6 {[%clk 0:01:12.5]} 28.
Qa6 {[%clk 0:00:18.5]} 28... Qd7 {[%clk 0:01:04.2]} 29. Qa5 {[%clk 0:00:18.6]}
29... Rb7 {[%clk 0:00:44]} 30. Be5 {[%clk 0:00:10.2]} 30... Bf8 {[%clk
0:00:42.5]} 31. Bf6 {[%clk 0:00:03.7]} 31... Bxh6 {[%clk 0:00:40.7]} 32. Qe5
{[%clk 0:00:04.1]} 32... Qd5 {[%clk 0:00:38]} 33. Qg3 {[%clk 0:00:02.3]} 33...
Qf5 {[%clk 0:00:34.4]} 34. Be5 {[%clk 0:00:02.7]} 34... Bg7 {[%clk 0:00:32.4]}
35. Bd6 {[%clk 0:00:03.1]} 35... Qh5 {[%clk 0:00:31.3]} 36. Bc5 {[%clk
0:00:02.9]} 36... Qxd1+ {[%clk 0:00:31]} 0-1

[Event "Early-Titled-Tuesday-Blitz-May-28-2024"]
[Site "Chess.com"]
[Date "2024.05.28"]
[Round "5"]
[White "viktorskliarov"]
[Black "JoliyRoger"]
[Result "1-0"]
[WhiteElo "2633"]
[BlackElo "2443"]
[TimeControl "180+1"]
[EndTime "8:56:18 PDT"]
[Termination "viktorskliarov won on time"]

1. e4 {[%clk 0:03:00.9]} 1... c6 {[%clk 0:02:56.6]} 2. d4 {[%clk 0:03:00.3]}
2... d5 {[%clk 0:02:57.5]} 3. e5 {[%clk 0:03:00.4]} 3... Bf5 {[%clk 0:02:56.5]}
4. Nf3 {[%clk 0:02:59.9]} 4... e6 {[%clk 0:02:56.6]} 5. Be2 {[%clk 0:02:59.9]}
5... Nd7 {[%clk 0:02:57.2]} 6. O-O {[%clk 0:02:58.8]} 6... a6 {[%clk 0:02:57.8]}
7. c3 {[%clk 0:02:55.4]} 7... h6 {[%clk 0:02:48.9]} 8. Re1 {[%clk 0:02:49.9]}
8... Ne7 {[%clk 0:02:37.5]} 9. Nbd2 {[%clk 0:02:39.8]} 9... Bg6 {[%clk
0:02:35.9]} 10. Nf1 {[%clk 0:02:35.2]} 10... c5 {[%clk 0:02:28]} 11. Ng3 {[%clk
0:02:11.1]} 11... cxd4 {[%clk 0:02:22.6]} 12. cxd4 {[%clk 0:02:08.1]} 12... Nc6
{[%clk 0:02:23.2]} 13. a3 {[%clk 0:02:04.4]} 13... Be7 {[%clk 0:02:20.7]} 14.
Be3 {[%clk 0:01:52.7]} 14... O-O {[%clk 0:02:08.6]} 15. Qd2 {[%clk 0:01:50.5]}
15... Na5 {[%clk 0:01:59.3]} 16. Rad1 {[%clk 0:01:16.2]} 16... b5 {[%clk
0:01:38.7]} 17. Bxh6 {[%clk 0:00:45.9]} 17... gxh6 {[%clk 0:01:19.5]} 18. Qxh6
{[%clk 0:00:46.8]} 18... Re8 {[%clk 0:01:16.5]} 19. Bd3 {[%clk 0:00:45.4]} 19...
Bf8 {[%clk 0:01:14.8]} 20. Qf4 {[%clk 0:00:42.1]} 20... Bg7 {[%clk 0:01:06.5]}
21. h4 {[%clk 0:00:39.3]} 21... Bxd3 {[%clk 0:00:49.2]} 22. Rxd3 {[%clk
0:00:38]} 22... f5 {[%clk 0:00:49.8]} 23. exf6 {[%clk 0:00:29.7]} 23... Qxf6
{[%clk 0:00:43.1]} 24. Qg4 {[%clk 0:00:27.3]} 24... Re7 {[%clk 0:00:29.4]} 25.
Nh5 {[%clk 0:00:25]} 25... Qh6 {[%clk 0:00:21.2]} 26. Ng5 {[%clk 0:00:25]} 26...
Nf8 {[%clk 0:00:18.8]} 27. Rg3 {[%clk 0:00:17.3]} 27... Rae8 {[%clk 0:00:10.4]}
28. Nf3 {[%clk 0:00:17.4]} 28... Nc4 {[%clk 0:00:07.3]} 29. Ne5 {[%clk
0:00:15.9]} 29... Nxe5 {[%clk 0:00:05.6]} 30. Rxe5 {[%clk 0:00:15.7]} 30... Kh8
{[%clk 0:00:04.2]} 31. Rg5 {[%clk 0:00:15.7]} 1-0

[Event "Early-Titled-Tuesday-Blitz-May-28-2024"]
[Site "Chess.com"]
[Date "2024.05.28"]
[Round "5"]
[White "N_I_Chess"]
[Black "Logman74"]
[Result "0-1"]
[WhiteElo "2237"]
[BlackElo "2531"]
[TimeControl "180+1"]
[EndTime "8:56:19 PDT"]
[Termination "Logman74 won by resignation"]

1. d4 {[%clk 0:03:00.9]} 1... Nf6 {[%clk 0:02:58.3]} 2. Nf3 {[%clk 0:02:54.6]}
2... g6 {[%clk 0:02:56.4]} 3. g3 {[%clk 0:02:48.8]} 3... Bg7 {[%clk 0:02:56.9]}
4. Bg2 {[%clk 0:02:49]} 4... O-O {[%clk 0:02:56.9]} 5. O-O {[%clk 0:02:49.3]}
5... d5 {[%clk 0:02:57.2]} 6. c4 {[%clk 0:02:43.9]} 6... dxc4 {[%clk 0:02:55.4]}
7. Nc3 {[%clk 0:02:34.6]} 7... Nbd7 {[%clk 0:02:41.8]} 8. e4 {[%clk 0:02:06.6]}
8... c6 {[%clk 0:02:41.4]} 9. a4 {[%clk 0:02:05.9]} 9... a5 {[%clk 0:02:40.1]}
10. Qe2 {[%clk 0:02:03.4]} 10... Qc7 {[%clk 0:02:36.7]} 11. Qxc4 {[%clk
0:01:58.8]} 11... Re8 {[%clk 0:02:33.4]} 12. Bf4 {[%clk 0:01:52.8]} 12... Qb6
{[%clk 0:02:29.8]} 13. Qe2 {[%clk 0:01:31.7]} 13... e5 {[%clk 0:02:13]} 14. dxe5
{[%clk 0:01:09]} 14... Ng4 {[%clk 0:02:08.7]} 15. Rfd1 {[%clk 0:01:00.8]} 15...
Ndxe5 {[%clk 0:02:00.8]} 16. Nxe5 {[%clk 0:00:56.2]} 16... Nxe5 {[%clk
0:01:56.5]} 17. Be3 {[%clk 0:00:51.5]} 17... Qc7 {[%clk 0:01:46.9]} 18. h3
{[%clk 0:00:43.9]} 18... Be6 {[%clk 0:01:45.7]} 19. Kh2 {[%clk 0:00:39.8]} 19...
Bb3 {[%clk 0:01:37]} 20. Re1 {[%clk 0:00:34.3]} 20... Rad8 {[%clk 0:01:34.6]}
21. f4 {[%clk 0:00:32.4]} 21... Nd3 {[%clk 0:01:24.8]} 22. Rg1 {[%clk 0:00:23]}
22... f5 {[%clk 0:01:23]} 23. e5 {[%clk 0:00:20.5]} 23... Bf8 {[%clk 0:01:22.8]}
24. g4 {[%clk 0:00:16.6]} 24... Qf7 {[%clk 0:01:22.5]} 25. Bf3 {[%clk
0:00:11.7]} 25... Bc5 {[%clk 0:01:20.5]} 26. Bxc5 {[%clk 0:00:10.7]} 26... Nxc5
{[%clk 0:01:20.1]} 27. Qg2 {[%clk 0:00:09.7]} 27... Be6 {[%clk 0:01:17.3]} 28.
Raf1 {[%clk 0:00:08.7]} 28... Rd3 {[%clk 0:01:16]} 29. Rd1 {[%clk 0:00:07.9]}
29... Red8 {[%clk 0:01:16.4]} 30. Rge1 {[%clk 0:00:08.8]} 30... Rxd1 {[%clk
0:01:14.8]} 31. Rxd1 {[%clk 0:00:07.9]} 31... Rxd1 {[%clk 0:01:15.3]} 32. Nxd1
{[%clk 0:00:08.8]} 32... Nxa4 {[%clk 0:01:07.9]} 33. g5 {[%clk 0:00:06.6]} 33...
Nb6 {[%clk 0:01:05.9]} 34. Ne3 {[%clk 0:00:05.7]} 34... Bd5 {[%clk 0:01:05.4]}
35. Bxd5 {[%clk 0:00:03.3]} 35... Nxd5 {[%clk 0:01:04.5]} 36. Qf3 {[%clk
0:00:01.7]} 36... a4 {[%clk 0:00:58]} 37. Kg3 {[%clk 0:00:01.8]} 37... Nxe3
{[%clk 0:00:56.9]} 38. Qxe3 {[%clk 0:00:02]} 38... Qc4 {[%clk 0:00:54.2]} 39. e6
{[%clk 0:00:01.2]} 39... Kf8 {[%clk 0:00:53.7]} 40. e7+ {[%clk 0:00:01.1]} 40...
Ke8 {[%clk 0:00:54.1]} 41. Qe5 {[%clk 0:00:02]} 41... Qd3+ {[%clk 0:00:47.4]}
42. Kg2 {[%clk 0:00:01.9]} 42... Qd5+ {[%clk 0:00:44.3]} 43. Qxd5 {[%clk
0:00:01]} 43... cxd5 {[%clk 0:00:44.2]} 44. Kf3 {[%clk 0:00:01.9]} 44... Kxe7
{[%clk 0:00:44.3]} 45. Ke3 {[%clk 0:00:02.8]} 45... Kd6 {[%clk 0:00:45]} 46. Kd4
{[%clk 0:00:03.7]} 46... b5 {[%clk 0:00:45.1]} 47. b4 {[%clk 0:00:04]} 0-1